Cogmind - Beta 11.1 *** ADVENTURER MODE // 2022.11.30 @ 18:12:44 Player: TheDishwasher Result: Destroyed by Z-Imprinter via exploding Z-Power Performance ------------- Evolutions (1) 500 Regions Visited (5) 1000 Robots Destroyed (62) 310 Value Destroyed (1428) 1428 Prototype IDs (5) 100 Alien Tech Used (0) 0 Bonus (608) 608 TOTAL SCORE: 3946 Bonus ------- High Alert Combat Kills 8 Met Imprinter 300 Was Imprinted 300 Cogmind --------- Core Integrity 0/400 Matter 300/300 Energy 100/100 System Corruption 0% Temperature Cool (17) Movement Core (100) Ox1 Location -7/Deep Caves Parts ------- > --- POWER (1) -------- (None) > --- PROPULSION (2) --- (None) > --- UTILITY (3) ------ Improved Terrain Scanner Terrain Scan Processor Transport Network Coupler > --- WEAPON (3) ------- CR-A16's Pointy Stick > --- INVENTORY (5) ---- Hacking Suite Hacking Drone Bay (1/1) Advanced Beam Cannon Mini Grenade Launcher Peak State ------------ > --- POWER ------------ Improved Deuterium Engine > --- PROPULSION ------- Wheel Wheel > --- UTILITY ---------- Terrain Scan Processor Transport Network Coupler Hacking Drone Bay > --- WEAPON ----------- Advanced Beam Cannon Heavy Battle Rifle CR-A16's Pointy Stick > --- INVENTORY -------- Improved Terrain Scanner Hacking Suite Advanced Beam Cannon Barrage Gun Mini Grenade Launcher [Rating: 30] Favorites ----------- Power Heavy Ion Engine Engine Heavy Ion Engine Propulsion Wheel Wheel Wheel Utility Terrain Scan Processor Device Improved Terrain Scanner Storage Medium Matter Pod Processor Terrain Scan Processor Weapon Advanced Beam Cannon Energy Gun EM Pulse Gun Energy Cannon Advanced Beam Cannon Ballistic Gun Heavy Battle Rifle Piercing Weapon CR-A16's Pointy Stick Build | -11 -10 -9 -9 -7 -7 ------- Run | Scr Mat Mat Min Zio Dee Slots Evolved 2 | . . 2 . . . Power . | . . . . . . Propulsion . | . . . . . . Utility 1 | . . 1 . . . Weapon 1 | . . 1 . . . Parts Attached 61 | 7 30 16 1 5 2 Power 10 | 1 4 4 . 1 . Engine 10 | 1 4 4 . 1 . Core . | . . . . . . Reactor . | . . . . . . Propulsion 17 | 2 11 2 1 1 . Treads . | . . . . . . Leg . | . . . . . . Wheel 17 | 2 11 2 1 1 . Hover . | . . . . . . Flight . | . . . . . . Utility 16 | 2 8 4 . 1 1 Device 12 | 1 7 2 . 1 1 Storage 1 | 1 . . . . . Processor 3 | . 1 2 . . . Hackware . | . . . . . . Protection . | . . . . . . Artifact . | . . . . . . Weapon 18 | 2 7 6 . 2 1 Energy Gun 5 | 1 4 . . . . Energy Cannon 5 | . 2 3 . . . Ballistic Gun 7 | 1 1 3 . 1 1 Ballistic Cannon . | . . . . . . Launcher . | . . . . . . Special Weapon . | . . . . . . Impact Weapon . | . . . . . . Slashing Weapon . | . . . . . . Piercing Weapon 1 | . . . . 1 . Special Melee Weapon . | . . . . . . Unidentified Prototypes 3 | . . 2 . 1 . Parts Lost 10 | . 4 . . . 6 Power 1 | . . . . . 1 Propulsion 4 | . 2 . . . 2 Utility 1 | . 1 . . . . Weapon 4 | . 1 . . . 3 Highest Loss Streak 6 | . 1 . . . 6 To Critical Strikes . | . . . . . . Average Slot Usage (%) 99 | . 98 99 100 100 98 Engine 11 | . 14 11 11 11 11 Wheel 23 | . 27 22 22 22 20 Device 12 | . 13 12 11 11 11 Processor 18 | . 10 20 22 22 22 Energy Gun 3 | . 12 . . . . Energy Cannon 14 | . 2 21 22 18 10 Ballistic Gun 11 | . 12 11 11 11 11 Piercing Weapon 1 | . . . . 3 11 Naked Turns . | . . . . . . Heaviest Build 22 | 10 12 20 20 22 22 Greatest Support 20 | 20 20 20 20 20 20 Greatest Overweight (x) 2 | . 1 . . 1 2 Average Overweight (x) . | . . . . . 1 Largest Inventory Capacity 5 | 5 5 5 5 5 5 Average Capacity 5 | 5 5 5 5 5 5 Most Carried 5 | 5 5 5 5 5 5 Average Carried 4 | 2 4 4 5 4 4 Final Capacity 5 | 5 5 5 5 5 5 Final Carried 5 | 5 5 5 5 5 4 Class Distribution -------------------- 39% | Mutant 25% | Skirmisher 24% | Scavenger-Skirmisher 7% | Scavenger-Mutant Dominant Class ---------------- Mutant | -10/Materials Skirmisher | -9/Materials Skirmisher | -9/Mines Scavenger-Skirmisher | -7/Zion Mutant | -7/Deep Caves Resources | -11 -10 -9 -9 -7 -7 ----------- Run | Scr Mat Mat Min Zio Dee Matter Collected 1291 | 377 471 308 82 53 . Remotely . | . . . . . . Salvage Created 2252 | 140 1022 885 205 . . Parts 144 | 14 65 55 10 . . Haulers Intercepted 5 | . 2 3 . . . Recyclers Shooed 2 | . . 1 1 . . Parts Field Recycled . | . . . . . . Retrieved Matter . | . . . . . . Parts Self-Destructed . | . . . . . . Prevented . | . . . . . . Kills | -11 -10 -9 -9 -7 -7 ------- Run | Scr Mat Mat Min Zio Dee Combat Hostiles Destroyed 35 | 1 15 15 4 . . Guns 22 | 1 14 5 2 . . Cannons 12 | . . 10 2 . . AOE 1 | . 1 . . . . Classes Destroyed 12 | 3 4 4 1 . . Worker 6 | 1 3 1 1 . . Builder 4 | . 3 1 . . . Tunneler 4 | 3 1 . . . . Hauler 5 | . 2 3 . . . Recycler 2 | . 1 1 . . . Operator 2 | . . 2 . . . Watcher 4 | . 3 1 . . . Swarmer 4 | . . 4 . . . Grunt 24 | 1 15 5 3 . . Brawler 1 | . . 1 . . . Duelist 1 | . . . 1 . . Sentry 5 | . . 5 . . . Best Kill Streak 7 | 4 7 7 4 . . Combat Bots Only 4 | 1 3 4 3 . . Max Kills in Single Turn 2 | 1 2 1 1 . . Gunslinging . | . . . . . . Exploded 1 | . 1 . . . . Melee . | . . . . . . Uniques/NPCs Destroyed . | . . . . . . Combat | -11 -10 -9 -9 -7 -7 -------- Run | Scr Mat Mat Min Zio Dee Damage Taken 2062 | 9 614 353 172 . 914 Core 634 | . 128 79 20 . 407 Absorbed by Shields . | . . . . . . Regen/Repaired (Parts) 49 | . . 49 . . . Core Remaining (%) 74 | 100 48 . . . . Volleys Fired 155 | 7 73 47 24 1 3 Largest 3 | 2 2 3 3 3 2 Hottest 169 | 60 120 159 159 169 101 Shots Fired 338 | 14 144 133 40 3 4 Gun 226 | 14 138 47 24 1 2 Cannon 112 | . 6 86 16 2 2 Launcher . | . . . . . . Special . | . . . . . . Kinetic 149 | 7 68 47 24 1 2 Thermal 133 | . 27 86 16 2 2 Explosive . | . . . . . . Electromagnetic 56 | 7 49 . . . . Robot Hit Streak 37 | 11 37 21 11 . 1 Robot Miss Streak 5 | 1 5 3 2 . 3 Penetration Max . | . . . . . . Secondary Targets 3 | . 3 . . . . Max Gunslinging Chain 1 | . 1 . . . . Shots Hit Robots 230 | 11 110 82 26 . 1 Core Hits 91 | 6 44 31 10 . . Critical Kills . | . . . . . . Critical Parts Destroyed . | . . . . . . Critical Strikes . | . . . . . . Melee Attacks . | . . . . . . Impact . | . . . . . . Slashing . | . . . . . . Piercing . | . . . . . . Sneak Attacks . | . . . . . . Combat Hostiles . | . . . . . . Follow-up Attacks . | . . . . . . Damage Inflicted 3668 | 194 1590 1397 472 . 15 Guns 2178 | 139 1391 326 307 . 15 Cannons 1289 | . 53 1071 165 . . Explosions 201 | 55 146 . . . . Melee . | . . . . . . Ramming . | . . . . . . Kinetic 1334 | 45 641 326 307 . 15 Thermal 1675 | 55 384 1071 165 . . Explosive . | . . . . . . Electromagnetic 659 | 94 565 . . . . Impact . | . . . . . . Slashing . | . . . . . . Piercing . | . . . . . . Highest Corruption . | . . . . . . Average Corruption . | . . . . . . Corruption Purged . | . . . . . . Corruption Blocked . | . . . . . . Overload Shots . | . . . . . . Overflow Damage 10 | . 2 8 . . . Projectiles 8 | . . 8 . . . Explosions 2 | . 2 . . . . Melee . | . . . . . . Knockbacks . | . . . . . . Impact . | . . . . . . Kinetic . | . . . . . . Secondary . | . . . . . . Self-Inflicted Damage 35 | . 35 . . . . Shots 2 | . 2 . . . . Rammed . | . . . . . . Targets Rammed . | . . . . . . Kicked . | . . . . . . Crushed . | . . . . . . Highest Temperature 371 | 6 307 371 356 102 98 Average Temperature 102 | 6 82 105 152 56 52 Received Heat Transfer 855 | 6 423 120 126 . 180 Effects 4 | . . 4 . . . Shutdowns 1 | . . 1 . . . Interference 3 | . . 3 . . . Siege Activations . | . . . . . . Robots Corrupted . | . . . . . . Combat Hostiles . | . . . . . . Parts Fried 1 | . . 1 . . . Impact Corruptions . | . . . . . . Robots Melted . | . . . . . . Combat Hostiles . | . . . . . . Parts Melted 5 | 1 1 3 . . . Heat Transferred 3125 | 50 633 2146 296 . . Parts Sabotaged . | . . . . . . Parts Stolen . | . . . . . . Parts Stripped . | . . . . . . Power Chain Reactions 4 | 2 2 . . . . Missiles Intercepted . | . . . . . . Alert | -11 -10 -9 -9 -7 -7 ------- Run | Scr Mat Mat Min Zio Dee Peak Influence 430 | 40 430 402 195 . . Initial 88 | . 22 88 81 . . Average 209 | 16 243 238 123 . . Maximum Alert Level 2 | . 2 2 . . . Low Security (%) 49 | 100 31 39 100 . . Level 1 41 | . 48 56 . . . Level 2 9 | . 19 4 . . . Level 3 . | . . . . . . Level 4 . | . . . . . . Level 5 . | . . . . . . High Security . | . . . . . . Max Security . | . . . . . . Squads Dispatched 9 | . 3 6 . . . Investigation 7 | . 3 4 . . . Extermination . | . . . . . . Reinforcement 2 | . . 2 . . . Assault . | . . . . . . Garrison . | . . . . . . Intercept . | . . . . . . Searches Triggered . | . . . . . . Construction Impeded 1 | . . 1 . . . Haulers Reinforced . | . . . . . . Active Scanning Responses . | . . . . . . Cargo Convoy Interrupts . | . . . . . . Stealth | -11 -10 -9 -9 -7 -7 --------- Run | Scr Mat Mat Min Zio Dee Distress Signals 2 | . 1 1 . . . Communications Jammed . | . . . . . . Distress Signals . | . . . . . . Times Spotted 52 | 1 25 18 5 . 3 Peak Tracking Total 7 | 1 4 3 3 . 7 Tactical Retreats 2 | . 1 1 . . . Traps | -11 -10 -9 -9 -7 -7 ------- Run | Scr Mat Mat Min Zio Dee Traps Triggered 3 | . 2 1 . . . Indirectly . | . . . . . . Trap Hack Attempts . | . . . . . . Triggered . | . . . . . . Disarmed 6 | . 6 . . . . Reprogrammed 13 | . 1 12 . . . Reused 8 | . . 8 . . . Traps Extracted . | . . . . . . Installed . | . . . . . . Triggered 9 | . . 9 . . . Machines | -11 -10 -9 -9 -7 -7 ---------- Run | Scr Mat Mat Min Zio Dee Machines Disabled 5 | . 2 1 1 . 1 Max in Single Turn 1 | . 1 1 1 . 1 Machines Sabotaged . | . . . . . . Garrisons Compromised . | . . . . . . Overloaded Fab Kills . | . . . . . . Hacking | -11 -10 -9 -9 -7 -7 --------- Run | Scr Mat Mat Min Zio Dee Machines Accessed 21 | . 10 11 . . . Terminals 16 | . 8 8 . . . Fabricators . | . . . . . . Repair Stations 3 | . 1 2 . . . Recycling Units 1 | . 1 . . . . Scanalyzers 1 | . . 1 . . . Garrison Access . | . . . . . . Total Hacks 90 | . 37 53 . . . Successful 66 | . 25 41 . . . Failed 24 | . 12 12 . . . Catastrophic . | . . . . . . Database Lockouts . | . . . . . . Manual 6 | . . . . 6 . Terminals 63 | . 31 32 . . . Fabricators . | . . . . . . Repair Stations 12 | . 3 9 . . . Recycling Units 3 | . 3 . . . . Scanalyzers 12 | . . 12 . . . Garrison Access . | . . . . . . Terminal Hacks 45 | . 22 23 . . . Record 14 | . 8 6 . . . Prototype ID Bank 1 | . . 1 . . . Branch Access Points 1 | . . 1 . . . Emergency Access Points 4 | . 2 2 . . . Recycling Unit Index 1 | . 1 . . . . Alert Level 2 | . . 2 . . . Unreport Threat 1 | . . 1 . . . Locate Traps 2 | . 1 1 . . . Disarm Traps 1 | . 1 . . . . Reprogram Traps 3 | . 1 2 . . . Dispatch Records 1 | . . 1 . . . Surveillance Status 1 | . 1 . . . . Transport Status 1 | . . 1 . . . Investigation Status 1 | . 1 . . . . Assault Status 1 | . 1 . . . . Recall Investigation 1 | . 1 . . . . Recall Reinforcements 1 | . 1 . . . . Hauler Manifests 3 | . 2 1 . . . Registered Components 1 | . . 1 . . . Zone Layout 4 | . 1 3 . . . Fabricator Hacks . | . . . . . . Repair Station Hacks 7 | . 1 6 . . . Scan Component 5 | . 1 4 . . . Repair 2 | . . 2 . . . Recycling Unit Hacks 2 | . 2 . . . . Process 1 | . 1 . . . . Report Inventory 1 | . 1 . . . . Scanalyzer 12 | . . 12 . . . Insert Component 6 | . . 6 . . . Analyze 6 | . . 6 . . . Garrison Access Hacks . | . . . . . . Unauthorized Hacks . | . . . . . . Terminals . | . . . . . . Fabricators . | . . . . . . Repair Stations . | . . . . . . Recycling Units . | . . . . . . Scanalyzers . | . . . . . . Garrison Access . | . . . . . . Data Cores Recovered 2 | . . 2 . . . Used 1 | . . 1 . . . Hacking Detections 17 | . 8 9 . . . Full Trace Events 7 | . 3 4 . . . Feedback Events . | . . . . . . Feedback Blocked . | . . . . . . Robot Schematics Acquired 4 | . . . . 4 . Robots Built . | . . . . . . Authchips . | . . . . . . Time . | . . . . . . Total Robot Build Rating . | . . . . . . Part Schematics Acquired 20 | . . 5 . 15 . Parts Built . | . . . . . . Authchips . | . . . . . . Time . | . . . . . . Total Part Build Rating . | . . . . . . Parts Repaired 2 | . . 2 . . . Time 64 | . . 64 . . . Parts Recycled . | . . . . . . Recycled Matter 1074 | . 1074 . . . . Retrieved Matter . | . . . . . . Retrieved Components . | . . . . . . Parts Scanalyzed 5 | . . 5 . . . Part Schematics Acquired 5 | . . 5 . . . Parts Damaged . | . . . . . . Bothacking | -11 -10 -9 -9 -7 -7 ------------ Run | Scr Mat Mat Min Zio Dee Used RIF Installer . | . . . . . . Robots Hacked . | . . . . . . Non-combat . | . . . . . . Combat . | . . . . . . Robot Hacks Applied . | . . . . . . Relay Couplers Released . | . . . . . . Fabnet Peak Effective % . | . . . . . . Robots Rewired . | . . . . . . Allies Hacked . | . . . . . . Hacks Repelled . | . . . . . . Allies | -11 -10 -9 -9 -7 -7 -------- Run | Scr Mat Mat Min Zio Dee Total Allies 4 | . . . . 4 . Largest Group 4 | . . . . 4 3 Highest-Rated Group 155 | . . . . 155 116 Highest-Rated Ally 40 | . . . . 40 40 Total Orders . | . . . . . . Ally Attacks . | . . . . . . Total Damage . | . . . . . . Kills . | . . . . . . Allies Corrupted . | . . . . . . Allies Melted . | . . . . . . Intel | -11 -10 -9 -9 -7 -7 ------- Run | Scr Mat Mat Min Zio Dee Robot Analysis Total . | . . . . . . Derelict Logs Recovered 2 | . . . 1 1 . Drone Launches . | . . . . . . Drone Recoveries . | . . . . . . Exploration | -11 -10 -9 -9 -7 -7 ------------- Run | Scr Mat Mat Min Zio Dee Turns Passed 3533 | 124 942 854 366 966 281 Spaces Moved 3258 | 112 821 733 320 990 282 Core 26 | 25 . . . . 1 Treads . | . . . . . . Legs . | . . . . . . Wheels 3232 | 87 821 733 320 990 281 Hover . | . . . . . . Flight . | . . . . . . Fastest Speed 50 | 50 80 80 80 80 80 Average Speed 84 | 73 80 80 80 91 96 Slowest Speed 150 | 80 95 80 80 95 150 Overloaded Moves . | . . . . . . Propulsion Burnouts . | . . . . . . Robots Hopped . | . . . . . . Cave-ins Triggered . | . . . . . . Exploration Rate (%) 56 | 7 91 69 57 82 32 Regions Visited 5 Branch Regions 3 Pre-discovered Areas 1 | . . . . 1 . Known Exits Taken 1 | . . 1 . . . Unknown Exits Taken 4 | 1 1 . 1 1 . Scrap Searched 5 | . . . 2 3 . Spaces Dug . | . . . . . . Terrain Destroyed 10 | 2 8 . . . . Melee . | . . . . . . Projectile . | . . . . . . AOE 10 | 2 8 . . . . Terrain Rammed . | . . . . . . Walls Destroyed . | . . . . . . Machines Disabled . | . . . . . . Actions | -11 -10 -9 -9 -7 -7 --------- Run | Scr Mat Mat Min Zio Dee Total 3752 | 140 972 906 396 1051 287 Wait 210 | . 17 93 51 49 . Move 3253 | 111 820 732 319 989 282 Hop . | . . . . . . Pick Up 29 | 13 7 7 . 2 . Fast Attach 19 | 1 8 7 . 3 . Attach 11 | 6 2 2 . . 1 Detach . | . . . . . . Swap 31 | . 20 7 1 2 1 Drop 44 | 2 25 11 1 5 . Fire 155 | 7 73 47 24 1 3 Melee . | . . . . . . Ram . | . . . . . . Kick . | . . . . . . Crush . | . . . . . . Escape Stasis . | . . . . . . Rewire . | . . . . . . Trap . | . . . . . . Miscellaneous . | . . . . . . Route ------- -11/Scrapyard -10/Materials (discovered 4 exits: *Mat x3 / [*Min]) -9/Materials (discovered 2 exits: [*Mat] / *Min) -9/Mines (discovered 2 exits: [*Mat] / *Zio) -7/Zion -7/Deep Caves History --------- Turn | Location | Event 2 | -11/Scrapyard | Met Revision 17 66 | -11/Scrapyard | Discovered new exit (range 8) 125 | -11/Scrapyard | Entered Materials 326 | -10/Materials | Build established: Mutant 387 | -10/Materials | Discovered new exit (range 3) 501 | -10/Materials | Discovered new exit (range 12) 581 | -10/Materials | Discovered new exit (range 15) 740 | -10/Materials | Core integrity fell below 50% 790 | -10/Materials | Discovered new exit (range 8) 1067 | -10/Materials | Entered another Materials area 1067 | -9/Materials | Evolved 2 slots: Utility x1, Weapon x1 1398 | -9/Materials | Repaired Imp. Terrain Scanner 1425 | -9/Materials | Repaired Beam Cannon 1550 | -9/Materials | Discovered new exit (range 10) 1746 | -9/Materials | Discovered new exit (range 8) 1893 | -9/Materials | Identified exit to Mines 1921 | -9/Materials | Entered Mines 1925 | -9/Mines | Met a Derelict bent on vengeance 1975 | -9/Mines | Build established: Skirmisher 2166 | -9/Mines | Discovered new exit (range 15) 2221 | -9/Mines | Learned Materials terminal intel 2269 | -9/Mines | A Derelict revealed a hidden shortcut to a safe place 2287 | -9/Mines | Entered Zion 2325 | -7/Zion | Acquired unknown access codes intercepted by a Zionite 2421 | -7/Zion | Learned location of 1 exit from Factory 2514 | -7/Zion | Build established: Scavenger-Skirmisher 2689 | -7/Zion | Imprinted 2691 | -7/Zion | Declared Zion's savior 2879 | -7/Zion | Learned location of Recycling (-7) 2911 | -7/Zion | Given the Hacking Drone Bay 2913 | -7/Zion | Found Prototype Device 2914 | -7/Zion | Identified Hacking Drone Bay 2964 | -7/Zion | Found CR-A16's Pointy Stick 3203 | -7/Zion | Opened final containment barrier to the Deep Caves 3218 | -7/Zion | Discovered new exit (range 5) 3220 | -7/Zion | Saw the warning signs outside the Deep Caves entrance 3253 | -7/Zion | Entered Deep Caves 3253 | -7/Deep Caves | Accompanied by 4 allies 3270 | -7/Deep Caves | Build established: Mutant 3501 | -7/Deep Caves | Attacked by Z-Imprinter 3523 | -7/Deep Caves | Z-Facility disabled 3533 | -7/Deep Caves | Core integrity fell below 50% 3534 | -7/Deep Caves | Destroyed by Z-Imprinter via exploding Z-Power Last Messages --------------- LOCATION=UNKNOWN GOAL=ESCAPE I9-T73(M): "Okay, we didn't really expect you'd be crazy enough to head out this way. We'll go back and get... reinforcements... yeah." I9-T73(M) slips into the shadows. NZ-SC9(M) slips into the shadows. 7W-WQX(M) slips into the shadows. GM-6VL(M) slips into the shadows. NEW_ZION: Z-Facility proximity alert. Z-Imprinter: GET AWAY FROM HERE! I've worked too hard for our future just to have you ruin everything! Wheel destroyed. Z-Facility disabled. Hvy. Battle Rifle destroyed. Adv. Beam Cannon destroyed. Imp. Deuterium Engine destroyed. Wheel destroyed. Z-Power explodes. 1A-HF3(z) destroyed. Barrage Gun destroyed. Map ----- +----------------------------------------------------+ | ?????????????????????????????????????????????#???? | | ?????????????????????????????? ?????##????#?????? | | ???????????????????????????? ##?### #?#????#### | | ???????????????????????????? ## # ???#### | | ??????????????????????????? ##### | | ??????????????????????????? | | ?????????????????????????? | | ?????????????????????????? | | ?????????????????????????? | | ??????????????????????"??""" | | ??????????????????????""??"" | | ???????????????????????"??"" | | ????????????? ????????????"" | | ???????????????????????"" | | ????????????????????????"""" | | ??????????????"???????"""""" | | ????????????????????"""""""" | | ??????????????"??"??"""""""" | | ????????? ????????"?""" " " | | ?????????????? "?"?"""""o o | | ????????? ? ???"""""""" | | ???????????? ????"""""""o | | ??????????? ????"""""""" | | ????????????????"""""""""" | | ????????? ??????"""""" z""o | | ??????? ? ???? ?""""" @ I | | ?????????? ?????""""" | | ????????????????"""" | | ???????????????"""""" | | ??????????? ? ??""""" | | ???????????????? """" | | ????????????? ?? """" | | ????????? ??? ???"""" | | ??????????????????""" | | ??????????????????""""""""""o | | ??????????????? ????"""""" | | ?????????????? ?? ?? ? | | ???????????? ?? ????????? | | ?????????????????? ??? ??? | | ???????????????????? ?? ???? | | ??????????????????????? ???? | | ????????????????????????????? | | ?????????????????????????????? ##### | | ??????????????????????????????#?????### #### | | ?????????????????????????????????????#######??## | | ??????????????????????????????????##?????#?#????# | | ?????????????????????????????????????????##??????# | | ??????????????????????????????????????????#?????#? | | | | | +----------------------------------------------------+ Best States ------------- Heat Dissipation 42 Energy Generation 16 Energy Capacity 290 Matter Stores 400 Matter Capacity 400 Sight Range 16 Terrain Scan Range 16 Terrain Scan Density 85 Resistance: KI 20 Resistance: TH 20 Resistance: EX 20 Resistance: EM 20 Resistance: I 20 Resistance: S 20 Resistance: P 20 Evasion (%) 50 Offensive Hacking 10 Item Schematics ----------------- Adv. Beam Cannon | -9/Materials | Scanalyzed Hacking Suite | -9/Materials | Scanalyzed Wheel | -9/Materials | Scanalyzed Mni. Grenade Launcher | -9/Materials | Scanalyzed Hvy. Ion Engine | -9/Materials | Scanalyzed Proton Cannon | -7/Zion | Archive Matter Filter | -7/Zion | Archive Magnetic Acceleration Cannon | -7/Zion | Archive System Restoration Module | -7/Zion | Archive 0b10 Decoder Chip [Skirmisher] | -7/Zion | Archive Hpw. Shock Rifle | -7/Zion | Archive Hvy. Laser | -7/Zion | Archive Mak. Salvage Targeting Computer | -7/Zion | Archive Hvy. Shock Bomb Launcher | -7/Zion | Archive Disruptor Cannon | -7/Zion | Archive Proton Missile Launcher | -7/Zion | Archive Imp. System Shield | -7/Zion | Archive Flak Gun | -7/Zion | Archive Hvy. Flak Cannon | -7/Zion | Archive Dynamic Insulation System | -7/Zion | Archive Robot Schematics ------------------ Y-54 Guardian | -7/Zion | Archive P-60 Hacker | -7/Zion | Archive D-53 Grenadier | -7/Zion | Archive Y-72 Warden | -7/Zion | Archive Fabricated ------------ Nothing Alien Tech Used ----------------- None Achievements -------------- Adventurer Robot Respite Signs Are For Wimps The One Challenges ------------ None Game ------ Seed HardlightChainCleaver Manual? 0 Play Time 01:08:27 Cumulative 7.3 hours Start 2022.11.29 @ 20:50:33 End 2022.11.30 @ 18:12:44 Sessions 3 Manual Loads 0 Difficulty Adventurer Special Mode None Game No. 3 Rogue 0 Adventurer 3 Explorer 0 Win Type - Total 0 Types 0/0/0/0/0/0/0/0/0 Lore% 15 Gallery% 10 Achievement% 14 Wizard Run 0 Options --------- ASCII 0 Keyboard 0 Movement Arrows Keybinds 0 Fullscreen 2 Font 18/X11 Map View 76x50 Tactical HUD 0 Map Filters NONE Filters NONE Steam 1 RUN: 36051284-992d-4625-8bee-2fccdb5fe30e